fUSD/lending_fUSD_20260612
["ID","MTS","AMOUNT","RATE_DAILY","PERIOD"]
[424926286,1781279432000,-500.0,9.351e-05,2]
[424926280,1781279432000,-500.0,9.351e-05,2]
[424926283,1781279432000,-500.0,9.351e-05,2]
[424926281,1781279432000,-500.0,9.351e-05,2]
[424926285,1781279432000,-500.0,9.351e-05,2]
[424926278,1781279432000,-500.0,9.351e-05,2]
[424926271,1781279432000,-226.17984138,9.351e-05,2]
[424926279,1781279432000,-500.0,9.351e-05,2]
[424926273,1781279432000,-500.0,9.351e-05,2]
[424926274,1781279432000,-500.0,9.351e-05,2]
[424926276,1781279432000,-500.0,9.351e-05,2]
[424926275,1781279432000,-500.0,9.351e-05,2]
[424926272,1781279432000,-500.0,9.351e-05,2]
[424926270,1781279432000,-273.82015862,9.351e-05,2]
[424926269,1781279432000,-500.0,9.351e-05,2]
[424926289,1781279432000,-397.37892481,9.351e-05,2]
[424926277,1781279432000,-500.0,9.351e-05,2]
[424926291,1781279432000,-500.0,9.351e-05,2]
[424926314,1781279432000,-1254.41808677,9.522e-05,2]
[424926288,1781279432000,-500.0,9.351e-05,2]
[424926294,1781279432000,-500.0,9.351e-05,2]
[424926318,1781279432000,-51244.0,9.522e-05,2]
[424926312,1781279432000,-207757.15934074,9.522e-05,2]
[424926311,1781279432000,-140290.76162131,9.522e-05,2]
[424926301,1781279432000,-500.0,9.351e-05,2]
[424926306,1781279432000,-500.0,9.351e-05,2]
[424926302,1781279432000,-202.32764356,9.351e-05,2]
[424926303,1781279432000,-150.0,9.351e-05,2]
[424926298,1781279432000,-500.0,9.351e-05,2]
[424926321,1781279432000,-653.51998734,9.522e-05,2]
[424926308,1781279432000,-685.40490127,9.351e-05,2]
[424926300,1781279432000,-500.0,9.351e-05,2]
[424926290,1781279432000,-500.0,9.351e-05,2]
[424926293,1781279432000,-500.0,9.351e-05,2]
[424926296,1781279432000,-500.0,9.351e-05,2]
[424926295,1781279432000,-500.0,9.351e-05,2]
[424926309,1781279432000,-197020.81723336,9.522e-05,2]
[424926307,1781279432000,-158.76726995,9.351e-05,2]
[424926310,1781279432000,-137074.48692026,9.522e-05,2]
[424926292,1781279432000,-500.0,9.351e-05,2]
[424926363,1781279438000,-500.0,9.625e-05,2]
[424926362,1781279438000,-177.42306754,9.625e-05,2]
[424926359,1781279438000,-150.0,9.625e-05,2]
[424926361,1781279438000,-250.0,9.625e-05,2]
[424926360,1781279438000,-418.64516088,9.625e-05,2]
[424926357,1781279438000,-150.0,9.625e-05,2]
[424926358,1781279438000,-500.0,9.625e-05,2]
[424926367,1781279438000,-543.0,9.625e-05,2]
[424926366,1781279438000,-500.0,9.625e-05,2]
[424926372,1781279438000,-543.0,9.625e-05,2]
[424926365,1781279438000,-500.0,9.625e-05,2]
[424926369,1781279438000,-500.0,9.625e-05,2]
[424926371,1781279438000,-500.0,9.625e-05,2]
[424926373,1781279438000,-543.0,9.625e-05,2]
[424926368,1781279438000,-532.61682043,9.625e-05,2]
[424926356,1781279438000,-500.0,9.625e-05,2]
[424926364,1781279438000,-500.0,9.625e-05,2]
[424926355,1781279438000,-500.0,9.625e-05,2]
[424926350,1781279438000,-500.0,9.625e-05,2]
[424926354,1781279438000,-150.0,9.625e-05,2]
[424926338,1781279438000,-87339.67734098,9.576e-05,2]
[424926337,1781279438000,-762195.73187975,9.522e-05,2]
[424926340,1781279438000,-2972.0587532,9.576e-05,2]
[424926339,1781279438000,-5066.28281962,9.576e-05,2]
[424926341,1781279438000,-970.02173271,9.576e-05,2]
[424926343,1781279438000,-1934.67143706,9.623e-05,2]
[424926348,1781279438000,-500.0,9.625e-05,2]
[424926353,1781279438000,-500.0,9.625e-05,2]
[424926342,1781279438000,-2200.0,9.6e-05,3]
[424926344,1781279438000,-286.66551239,9.624e-05,2]
[424926374,1781279438000,-543.0,9.625e-05,2]
[424926347,1781279438000,-500.0,9.625e-05,2]
[424926345,1781279438000,-170.62314521,9.624e-05,2]
[424926349,1781279438000,-150.0,9.625e-05,2]
[424926351,1781279438000,-150.0,9.625e-05,2]
[424926352,1781279438000,-500.0,9.625e-05,2]
[424926346,1781279438000,-500.0,9.625e-05,2]
[424926370,1781279438000,-543.0,9.625e-05,2]
[424926417,1781279438000,-543.0,9.625e-05,2]
[424926386,1781279438000,-500.0,9.625e-05,2]
[424926397,1781279438000,-543.0,9.625e-05,2]
[424926400,1781279438000,-500.0,9.625e-05,2]
[424926415,1781279438000,-500.0,9.625e-05,2]
[424926413,1781279438000,-500.0,9.625e-05,2]
[424926420,1781279438000,-500.0,9.625e-05,2]
[424926402,1781279438000,-500.0,9.625e-05,2]
[424926406,1781279438000,-543.0,9.625e-05,2]
[424926393,1781279438000,-500.0,9.625e-05,2]
[424926404,1781279438000,-500.0,9.625e-05,2]
[424926424,1781279438000,-543.0,9.625e-05,2]
[424926411,1781279438000,-500.0,9.625e-05,2]
[424926431,1781279438000,-500.0,9.625e-05,2]
[424926426,1781279438000,-500.0,9.625e-05,2]
[424926429,1781279438000,-500.0,9.625e-05,2]
[424926433,1781279438000,-543.0,9.625e-05,2]
[424926376,1781279438000,-500.0,9.625e-05,2]
[424926422,1781279438000,-500.0,9.625e-05,2]
[424926396,1781279438000,-500.0,9.625e-05,2]
[424926409,1781279438000,-500.0,9.625e-05,2]
[424926394,1781279438000,-305.54732619,9.625e-05,2]
[424926391,1781279438000,-543.0,9.625e-05,2]
[424926375,1781279438000,-500.0,9.625e-05,2]
[424926379,1781279438000,-500.0,9.625e-05,2]
[424926377,1781279438000,-543.0,9.625e-05,2]
[424926380,1781279438000,-543.0,9.625e-05,2]
[424926378,1781279438000,-500.0,9.625e-05,2]
[424926382,1781279438000,-500.0,9.625e-05,2]
[424926385,1781279438000,-543.0,9.625e-05,2]
[424926383,1781279438000,-543.0,9.625e-05,2]
[424926384,1781279438000,-500.0,9.625e-05,2]
[424926387,1781279438000,-500.0,9.625e-05,2]
[424926389,1781279438000,-500.0,9.625e-05,2]
[424926388,1781279438000,-500.0,9.625e-05,2]
[424926392,1781279438000,-500.0,9.625e-05,2]
[424926395,1781279438000,-543.0,9.625e-05,2]
[424926381,1781279438000,-500.0,9.625e-05,2]
[424926390,1781279438000,-500.0,9.625e-05,2]
[424926483,1781279439000,-6821.1652,9.7e-05,2]
[424926482,1781279439000,-500.0,9.699e-05,2]
[424926481,1781279439000,-999.99,9.699e-05,2]
[424926480,1781279439000,-9999.99,9.699e-05,2]
[424926476,1781279439000,-9999.99,9.684e-05,2]
[424926479,1781279439000,-150.99,9.699e-05,2]
[424926477,1781279439000,-39894.55,9.699e-05,2]
[424926484,1781279439000,-4400.0,9.7e-05,3]
[424926473,1781279439000,-2424.95841128,9.634e-05,2]
[424926478,1781279439000,-22862.16,9.699e-05,2]
[424926485,1781279439000,-500.0,9.726e-05,2]
[424926495,1781279439000,-858.09194484,0.0001,2]
[424926488,1781279439000,-160.0,9.828e-05,2]
[424926489,1781279439000,-151.0,9.897e-05,2]
[424926487,1781279439000,-160.0,9.828e-05,2]
[424926490,1781279439000,-151.0,9.897e-05,2]
[424926491,1781279439000,-8900.0,9.9e-05,3]
[424926493,1781279439000,-455.17,9.948e-05,2]
[424926496,1781279439000,-11200.0,0.0001,3]
[424926494,1781279439000,-500.0,9.973e-05,2]
[424926497,1781279439000,-175.0,0.0001,2]
[424926501,1781279439000,-500.0,0.00010247,2]
[424926474,1781279439000,-4277.914077,9.684e-05,2]
[424926486,1781279439000,-6700.0,9.8e-05,3]
[424926471,1781279439000,-552.0,9.625e-05,2]
[424926448,1781279439000,-359.08174895,9.625e-05,2]
[424926469,1781279439000,-543.0,9.625e-05,2]
[424926444,1781279439000,-500.0,9.625e-05,2]
[424926437,1781279439000,-543.0,9.625e-05,2]
[424926439,1781279439000,-500.0,9.625e-05,2]
[424926442,1781279439000,-500.0,9.625e-05,2]
[424926435,1781279439000,-500.0,9.625e-05,2]
[424926446,1781279439000,-500.0,9.625e-05,2]
[424926498,1781279439000,-252.05,0.00010027,2]
[424926452,1781279439000,-500.0,9.625e-05,2]
[424926450,1781279439000,-543.0,9.625e-05,2]
[424926454,1781279439000,-500.0,9.625e-05,2]
[424926456,1781279439000,-628.12759522,9.625e-05,2]
[424926457,1781279439000,-500.0,9.625e-05,2]
[424926464,1781279439000,-500.0,9.625e-05,2]
[424926465,1781279439000,-500.0,9.625e-05,2]
[424926459,1781279439000,-500.0,9.625e-05,2]
[424926461,1781279439000,-500.0,9.625e-05,2]
[424926462,1781279439000,-543.0,9.625e-05,2]
[424926463,1781279439000,-500.0,9.625e-05,2]
[424926475,1781279439000,-6399.50361396,9.684e-05,2]
[424926466,1781279439000,-207.47344829,9.625e-05,2]
[424926467,1781279439000,-543.0,9.625e-05,2]
[424926470,1781279439000,-543.0,9.625e-05,2]
[424926468,1781279439000,-543.0,9.625e-05,2]
[424926472,1781279439000,-918.88740927,9.634e-05,2]
[424926499,1781279439000,-2000.0,0.00010174,2]
[424926492,1781279439000,-151.0,9.9e-05,2]
[424926503,1781279439000,-250.0,0.00010286,2]
[424926530,1781279439000,-1584.33901199,0.00011099,2]
[424926533,1781279439000,-500.0,0.00011157,2]
[424926534,1781279439000,-153.27,0.00011248,2]
[424926535,1781279439000,-1584.33901199,0.00011271,2]
[424926540,1781279439000,-2839.0,0.00011536,5]
[424926531,1781279439000,-166.66,0.00011117,2]
[424926538,1781279439000,-433.0,0.00011404,2]
[424926537,1781279439000,-164.15,0.00011349,2]
[424926539,1781279439000,-166.66,0.00011434,2]
[424926542,1781279439000,-500.0,0.00011583,2]
[424926541,1781279439000,-2471.0,0.00011536,5]
[424926532,1781279439000,-24105.5418581,0.00011126,2]
[424926544,1781279439000,-500.0,0.00011583,2]
[424926552,1781279439000,-336.21909563,0.00011583,2]
[424926545,1781279439000,-500.0,0.00011583,2]
[424926548,1781279439000,-500.0,0.00011583,2]
[424926551,1781279439000,-500.0,0.00011583,2]
[424926546,1781279439000,-500.0,0.00011583,2]
[424926549,1781279439000,-500.0,0.00011583,2]
[424926547,1781279439000,-500.0,0.00011583,2]
[424926553,1781279439000,-500.0,0.00011583,2]
[424926555,1781279439000,-500.0,0.00011583,2]
[424926554,1781279439000,-500.0,0.00011583,2]
[424926504,1781279439000,-193.0,0.00010321,2]
[424926543,1781279439000,-500.0,0.00011583,2]
[424926529,1781279439000,-1584.33901199,0.00011099,2]
[424926536,1781279439000,-166.66,0.00011275,2]
[424926526,1781279439000,-221.64429931,0.00011069,2]
[424926505,1781279439000,-1176.05708955,0.00010321,2]
[424926528,1781279439000,-1584.33901199,0.00011099,2]
[424926508,1781279439000,-255.0,0.00010368,2]
[424926506,1781279439000,-300.0,0.00010321,2]
[424926502,1781279439000,-300.0,0.00010286,2]
[424926507,1781279439000,-297.7520469,0.00010321,2]
[424926510,1781279439000,-372.23,0.00010736,2]
[424926509,1781279439000,-500.0,0.00010521,2]
[424926511,1781279439000,-500.0,0.00010795,2]
[424926512,1781279439000,-500.0,0.00010958,2]
[424926516,1781279439000,-500.0,0.00010958,2]
[424926517,1781279439000,-500.0,0.00010958,2]
[424926500,1781279439000,-33280.8127,0.00010174,2]
[424926514,1781279439000,-500.0,0.00010958,2]
[424926513,1781279439000,-500.0,0.00010958,2]
[424926527,1781279439000,-1000.0,0.00011093,2]
[424926524,1781279439000,-164.15,0.00010986,2]
[424926522,1781279439000,-186.72,0.00010959,2]
[424926523,1781279439000,-150.0,0.00010959,2]
[424926521,1781279439000,-166.66,0.00010959,2]
[424926525,1781279439000,-455.17,0.00011053,2]
[424926519,1781279439000,-500.0,0.00010958,2]
[424926518,1781279439000,-500.0,0.00010958,2]
[424926515,1781279439000,-500.0,0.00010958,2]
[424926520,1781279439000,-500.0,0.00010958,2]
[424926583,1781279440000,-22239.4,0.0001288,2]
[424926593,1781279440000,-215.03290396,0.00013545,2]
[424926587,1781279440000,-372.23,0.0001342,2]
[424926598,1781279440000,-264.70019315,0.00013698,2]
[424926596,1781279440000,-2056.87974885,0.00013632,2]
[424926597,1781279440000,-1584.33901199,0.00013664,2]
[424926588,1781279440000,-215.575497,0.00013442,2]
[424926584,1781279440000,-1584.33901199,0.00013065,2]
[424926591,1781279440000,-200.020984,0.00013492,2]
[424926594,1781279440000,-313.32,0.00013557,2]
[424926590,1781279440000,-250.257509,0.00013491,2]
[424926589,1781279440000,-194.13916,0.00013442,2]
[424926605,1781279440000,-500.0,0.00013698,2]
[424926595,1781279440000,-500.0,0.00013632,2]
[424926599,1781279440000,-4722.40181848,0.00013698,2]
[424926601,1781279440000,-2220.47064812,0.00013698,2]
[424926603,1781279440000,-500.0,0.00013698,2]
[424926602,1781279440000,-500.0,0.00013698,2]
[424926600,1781279440000,-3087.97190107,0.00013698,2]
[424926604,1781279440000,-500.0,0.00013698,2]
[424926606,1781279440000,-298.73640361,0.00013698,2]
[424926607,1781279440000,-500.0,0.00013698,2]
[424926608,1781279440000,-500.0,0.00013698,2]
[424926582,1781279440000,-22239.4,0.0001288,2]
[424926592,1781279440000,-300.06,0.00013533,2]
[424926586,1781279440000,-455.17,0.00013263,2]
[424926561,1781279440000,-500.0,0.00011583,2]
[424926580,1781279440000,-164.15,0.000128,2]
[424926609,1781279440000,-500.0,0.00013698,2]
[424926558,1781279440000,-500.0,0.00011583,2]
[424926563,1781279440000,-166.66,0.00011592,2]
[424926560,1781279440000,-500.0,0.00011583,2]
[424926557,1781279440000,-500.0,0.00011583,2]
[424926562,1781279440000,-235.71588977,0.00011583,2]
[424926559,1781279440000,-500.0,0.00011583,2]
[424926556,1781279440000,-500.0,0.00011583,2]
[424926565,1781279440000,-164.15,0.00011712,2]
[424926571,1781279440000,-455.17,0.00012158,2]
[424926564,1781279440000,-151.0,0.00011701,2]
[424926573,1781279440000,-858.09194484,0.00012306,2]
[424926574,1781279440000,-164.15,0.00012437,2]
[424926572,1781279440000,-8658.7479,0.00012234,2]
[424926566,1781279440000,-166.66,0.0001175,2]
[424926568,1781279440000,-164.15,0.00012074,2]
[424926569,1781279440000,-372.23,0.00012078,2]
[424926567,1781279440000,-1584.33901199,0.00011869,2]
[424926570,1781279440000,-253.2884851,0.00012101,2]
[424926575,1781279440000,-1584.33901199,0.00012467,2]
[424926579,1781279440000,-250.0,0.00012582,2]
[424926576,1781279440000,-736.0,0.00012545,2]
[424926578,1781279440000,-151.42762908,0.00012575,2]
[424926577,1781279440000,-215.03290396,0.00012575,2]
[424926585,1781279440000,-313.32,0.00013097,2]
[424926581,1781279440000,-299.29,0.00012869,2]
[424926611,1781279440000,-500.0,0.00013698,2]
[424926655,1781279440000,-500.0,0.00013698,2]
[424926610,1781279440000,-500.0,0.00013698,2]
[424926639,1781279440000,-836.83,0.00013698,2]
[424926638,1781279440000,-836.83,0.00013698,2]
[424926645,1781279440000,-836.83,0.00013698,2]
[424926646,1781279440000,-836.83,0.00013698,2]
[424926651,1781279440000,-500.0,0.00013698,2]
[424926650,1781279440000,-500.0,0.00013698,2]
[424926653,1781279440000,-500.0,0.00013698,2]
[424926654,1781279440000,-500.0,0.00013698,2]
[424926648,1781279440000,-689.19,0.00013698,2]
[424926647,1781279440000,-836.83,0.00013698,2]
[424926652,1781279440000,-500.0,0.00013698,2]
[424926657,1781279440000,-500.0,0.00013698,2]
[424926656,1781279440000,-500.0,0.00013698,2]
[424926659,1781279440000,-500.0,0.00013698,2]
[424926660,1781279440000,-500.0,0.00013698,2]
[424926658,1781279440000,-500.0,0.00013698,2]
[424926661,1781279440000,-500.0,0.00013698,2]
[424926662,1781279440000,-500.0,0.00013698,2]
[424926666,1781279440000,-500.0,0.00013698,2]
[424926664,1781279440000,-151.228634,0.00013698,2]
[424926665,1781279440000,-500.0,0.00013698,2]
[424926663,1781279440000,-500.0,0.00013698,2]
[424926667,1781279440000,-500.0,0.00013698,2]
[424926668,1781279440000,-500.0,0.00013698,2]
[424926616,1781279440000,-1480.48,0.00013698,2]
[424926635,1781279440000,-836.83,0.00013698,2]
[424926636,1781279440000,-836.83,0.00013698,2]
[424926649,1781279440000,-500.0,0.00013698,2]
[424926643,1781279440000,-836.83,0.00013698,2]
[424926644,1781279440000,-836.83,0.00013698,2]
[424926614,1781279440000,-500.0,0.00013698,2]
[424926613,1781279440000,-500.0,0.00013698,2]
[424926615,1781279440000,-500.0,0.00013698,2]
[424926620,1781279440000,-1480.48,0.00013698,2]
[424926612,1781279440000,-500.0,0.00013698,2]
[424926618,1781279440000,-1480.48,0.00013698,2]
[424926619,1781279440000,-1480.48,0.00013698,2]
[424926621,1781279440000,-597.26,0.00013698,2]
[424926622,1781279440000,-597.26,0.00013698,2]
[424926630,1781279440000,-836.83,0.00013698,2]
[424926632,1781279440000,-836.83,0.00013698,2]
[424926625,1781279440000,-597.26,0.00013698,2]
[424926617,1781279440000,-1480.48,0.00013698,2]
[424926642,1781279440000,-836.83,0.00013698,2]
[424926629,1781279440000,-500.0,0.00013698,2]
[424926634,1781279440000,-836.83,0.00013698,2]
[424926640,1781279440000,-836.83,0.00013698,2]
[424926641,1781279440000,-836.83,0.00013698,2]
[424926633,1781279440000,-836.83,0.00013698,2]
[424926637,1781279440000,-836.83,0.00013698,2]
[424926623,1781279440000,-597.26,0.00013698,2]
[424926626,1781279440000,-500.0,0.00013698,2]
[424926631,1781279440000,-836.83,0.00013698,2]
[424926628,1781279440000,-500.0,0.00013698,2]
[424926627,1781279440000,-500.0,0.00013698,2]
[424926705,1781279441000,-151.0,0.00014032,2]
[424926714,1781279441000,-175.987,0.00014157,2]
[424926703,1781279441000,-2000.0,0.00014,2]
[424926706,1781279441000,-597.26,0.00014035,2]
[424926713,1781279441000,-2015.848,0.00014157,2]
[424926724,1781279441000,-1500.0,0.00014379,2]
[424926701,1781279441000,-151.0,0.00013992,2]
[424926702,1781279441000,-2000.0,0.00014,2]
[424926699,1781279441000,-151.0,0.00013992,2]
[424926715,1781279441000,-300.06,0.00014165,2]
[424926697,1781279441000,-151.0,0.00013992,2]
[424926704,1781279441000,-313.32,0.00014016,2]
[424926708,1781279441000,-500.0,0.00014035,2]
[424926719,1781279441000,-313.32,0.00014313,2]
[424926711,1781279441000,-300.06,0.00014072,2]
[424926712,1781279441000,-313.32,0.00014125,2]
[424926707,1781279441000,-317.27339362,0.00014035,2]
[424926710,1781279441000,-500.0,0.00014035,2]
[424926716,1781279441000,-313.32,0.00014223,2]
[424926717,1781279441000,-300.06,0.0001425,2]
[424926718,1781279441000,-1584.33901199,0.00014262,2]
[424926721,1781279441000,-300.06,0.0001433,2]
[424926720,1781279441000,-500.0,0.00014329,2]
[424926725,1781279441000,-350.0,0.00014383,2]
[424926727,1781279441000,-300.06,0.00014405,2]
[424926700,1781279441000,-151.0,0.00013992,2]
[424926709,1781279441000,-500.0,0.00014035,2]
[424926698,1781279441000,-151.0,0.00013992,2]
[424926678,1781279441000,-500.0,0.00013699,2]
[424926694,1781279441000,-151.0,0.00013992,2]
[424926723,1781279441000,-150.0,0.00014351,2]
[424926676,1781279441000,-1000.0,0.00013699,2]
[424926673,1781279441000,-843.7,0.00013699,2]
[424926674,1781279441000,-200.0,0.00013699,2]
[424926672,1781279441000,-168.74,0.00013699,2]
[424926671,1781279441000,-2500.0,0.00013699,2]
[424926670,1781279441000,-319.91582994,0.00013698,2]
[424926677,1781279441000,-500.0,0.00013699,2]
[424926675,1781279441000,-522.39421545,0.00013699,10]
[424926669,1781279441000,-500.0,0.00013698,2]
[424926679,1781279441000,-500.0,0.00013699,2]
[424926681,1781279441000,-353.98,0.000137,2]
[424926695,1781279441000,-151.0,0.00013992,2]
[424926680,1781279441000,-614.41645061,0.00013699,2]
[424926682,1781279441000,-300.06,0.00013713,2]
[424926690,1781279441000,-300.06,0.00013969,2]
[424926688,1781279441000,-313.32,0.00013893,2]
[424926685,1781279441000,-1252.0,0.00013798,2]
[424926684,1781279441000,-20618.5566893,0.00013782,2]
[424926683,1781279441000,-313.32,0.00013747,2]
[424926686,1781279441000,-866.79562143,0.00013825,2]
[424926689,1781279441000,-884.272152,0.00013925,2]
[424926687,1781279441000,-300.06,0.00013852,2]
[424926692,1781279441000,-500.0,0.00013992,2]
[424926696,1781279441000,-151.0,0.00013992,2]
[424926693,1781279441000,-500.0,0.00013992,2]
[424926691,1781279441000,-151.0,0.00013989,2]
[424926722,1781279441000,-200.0,0.0001435,2]
[424926791,1781279441000,-151.0,0.0001496,2]
[424926733,1781279441000,-522.39421545,0.00014521,10]
[424926762,1781279441000,-1584.33901199,0.0001486,2]
[424926764,1781279441000,-5800.0,0.00014874,2]
[424926766,1781279441000,-5800.0,0.00014883,2]
[424926770,1781279441000,-500.0,0.00014899,2]
[424926777,1781279441000,-842.69404067,0.000149,3]
[424926773,1781279441000,-10000.0,0.000149,2]
[424926772,1781279441000,-500.0,0.00014899,2]
[424926774,1781279441000,-858.09194484,0.000149,2]
[424926775,1781279441000,-5800.0,0.000149,2]
[424926776,1781279441000,-2200.0,0.000149,5]
[424926779,1781279441000,-443.0,0.0001493,2]
[424926771,1781279441000,-500.0,0.00014899,2]
[424926767,1781279441000,-5800.0,0.00014891,2]
[424926780,1781279441000,-442.0,0.0001493,2]
[424926782,1781279441000,-836.83,0.00014959,2]
[424926781,1781279441000,-151.0,0.00014957,2]
[424926783,1781279441000,-836.83,0.00014959,2]
[424926784,1781279441000,-836.83,0.00014959,2]
[424926786,1781279441000,-836.98955664,0.00014959,2]
[424926785,1781279441000,-836.83,0.00014959,2]
[424926788,1781279441000,-91700.80260044,0.0001496,2]
[424926792,1781279441000,-151.0,0.0001496,2]
[424926787,1781279441000,-338123.02418456,0.0001496,2]
[424926789,1781279441000,-151.0,0.0001496,2]
[424926790,1781279441000,-151.0,0.0001496,2]
[424926726,1781279441000,-313.32,0.00014397,2]
[424926778,1781279441000,-1555.5,0.00014927,2]
[424926763,1781279441000,-5800.0,0.00014866,2]
[424926765,1781279441000,-200.0,0.00014879,2]
[424926759,1781279441000,-200.99798,0.0001485,2]
[424926735,1781279441000,-350.0,0.00014561,2]
[424926729,1781279441000,-300.06,0.00014475,2]
[424926730,1781279441000,-300.09,0.00014476,2]
[424926739,1781279441000,-1005.8,0.0001458,2]
[424926731,1781279441000,-313.32,0.00014476,2]
[424926728,1781279441000,-199.5,0.00014407,2]
[424926736,1781279441000,-447.0,0.0001458,2]
[424926732,1781279441000,-152.94460208,0.00014493,2]
[424926738,1781279441000,-153.0,0.0001458,2]
[424926734,1781279441000,-200.0,0.00014526,2]
[424926737,1781279441000,-444.0,0.0001458,2]
[424926768,1781279441000,-1480.48,0.00014899,2]
[424926741,1781279441000,-151.0,0.000146,2]
[424926745,1781279441000,-253.540453,0.000147,2]
[424926740,1781279441000,-1560.37,0.0001458,2]
[424926742,1781279441000,-151.0,0.000146,2]
[424926769,1781279441000,-597.26,0.00014899,2]
[424926760,1781279441000,-5800.0,0.00014858,2]
[424926743,1781279441000,-151.0,0.00014697,2]
[424926758,1781279441000,-200.99797,0.0001485,2]
[424926751,1781279441000,-372.23,0.00014762,2]
[424926761,1781279441000,-200.99798,0.0001486,2]
[424926749,1781279441000,-4600.6218561,0.0001472,2]
[424926750,1781279441000,-836.83,0.00014724,2]
[424926754,1781279441000,-5800.0,0.00014841,2]
[424926756,1781279441000,-5800.0,0.00014849,2]
[424926747,1781279441000,-200.0,0.00014703,2]
[424926752,1781279441000,-2200.0,0.000148,5]
[424926801,1781279442000,-159.25861799,0.00014999,2]
[424926793,1781279442000,-151.0,0.0001496,2]
[424926797,1781279442000,-151.0,0.0001496,2]
[424926794,1781279442000,-189.708723,0.0001496,2]
[424926795,1781279442000,-151.0,0.0001496,2]
[424926796,1781279442000,-151.0,0.0001496,2]
[424926799,1781279442000,-262.15025503,0.00014969,2]
[424926803,1781279442000,-1182.98542091,0.00014999,2]
[424926800,1781279442000,-151.0,0.00014996,2]
[424926802,1781279442000,-161086.09734196,0.00014999,2]
[424926798,1781279442000,-151.0,0.0001496,2]
[424926805,1781279442000,-1834.83611091,0.00014999,2]
[424926807,1781279442000,-3118.06343147,0.00014999,2]
[424926808,1781279442000,-1998.32093237,0.00014999,2]
[424926804,1781279442000,-1350.10353793,0.00014999,2]
[424926806,1781279442000,-6438.71054039,0.00014999,2]
[424926819,1781279443000,-50.16406539,0.00014999,2]
[424926821,1781279443000,-2249.97007802,0.00014999,2]
[424926820,1781279443000,-5680.70395821,0.00014999,2]
[424926822,1781279443000,-1095.25366742,0.00014999,2]
[424926825,1781279443000,-151.0,0.00014317,2]
[424926828,1781279443000,-1026.44372837,0.00014999,2]
[424926826,1781279443000,-11054.47009969,0.00014999,2]
[424926830,1781279443000,-388987.6378976,0.00014999,2]
[424926831,1781279443000,-12560.1752718,0.00014999,2]
[424926829,1781279443000,-461.4764395,0.00014999,2]
[424926827,1781279443000,-97964.76274986,0.00014999,2]
[424926875,1781279444000,-597.49,0.00014999,2]
[424926858,1781279444000,-597.26,0.00014999,2]
[424926861,1781279444000,-597.26,0.00014999,2]
[424926851,1781279444000,-1480.5704174,0.00014999,2]
[424926864,1781279444000,-597.26,0.00014999,2]
[424926850,1781279444000,-1480.48,0.00014999,2]
[424926866,1781279444000,-597.26,0.00014999,2]
[424926865,1781279444000,-597.26,0.00014999,2]
[424926869,1781279444000,-597.26,0.00014999,2]
[424926867,1781279444000,-597.26,0.00014999,2]
[424926872,1781279444000,-597.26,0.00014999,2]
[424926870,1781279444000,-597.26,0.00014999,2]
[424926873,1781279444000,-597.26,0.00014999,2]
[424926874,1781279444000,-597.26,0.00014999,2]
[424926871,1781279444000,-597.26,0.00014999,2]
[424926849,1781279444000,-1480.48,0.00014999,2]
[424926877,1781279444000,-151.0,0.00014999,2]
[424926887,1781279444000,-500.0,0.00014999,2]
[424926868,1781279444000,-597.26,0.00014999,2]